fUSD/lending_fUSD_20240624
["ID","MTS","AMOUNT","RATE_DAILY","PERIOD"]
[330325543,1719258274253,-786.54,0.00044931,120]
[330325544,1719258274292,-1133.73,0.00044931,120]
[330325545,1719258274331,-606.66,0.00044931,120]
[330325546,1719258274370,-500.0,0.00044931,120]
[330325547,1719258274411,-500.0,0.00044931,120]
[330325548,1719258274450,-500.0,0.00044931,120]
[330325549,1719258274489,-500.0,0.00044931,120]
[330325550,1719258274529,-500.0,0.00044931,120]
[330325551,1719258274569,-500.0,0.00044931,120]
[330325552,1719258274611,-2697.16,0.00044931,120]
[330325553,1719258274651,-500.0,0.00044931,120]
[330325554,1719258274690,-500.0,0.00044931,120]
[330325555,1719258274729,-500.0,0.00044931,120]
[330325556,1719258274765,-648.35,0.00044931,120]
[330325557,1719258274804,-500.0,0.00044931,120]
[330325558,1719258274847,-3832.32,0.00044931,120]
[330325559,1719258274887,-500.0,0.00044931,120]
[330325560,1719258274926,-7738.66,0.00044931,120]
[330325561,1719258274965,-511.82,0.00044931,120]
[330325562,1719258275003,-1651.64,0.00044931,120]
[330325563,1719258275040,-8679.15,0.00044931,120]
[330325564,1719258275078,-657.61,0.00044931,120]
[330325565,1719258275116,-782.34,0.00044931,120]
[330325566,1719258275154,-500.0,0.00044931,120]
[330325567,1719258275192,-3258.67,0.00044931,120]
[330325568,1719258275230,-500.0,0.00044931,120]
[330325569,1719258275268,-9116.37,0.00044931,120]
[330325570,1719258275307,-716.19,0.00044931,120]
[330325571,1719258275346,-673.44,0.00044931,120]
[330325572,1719258275383,-500.0,0.00044931,120]
[330325573,1719258275422,-1809.76,0.00044931,120]
[330325574,1719258275460,-500.0,0.00044931,120]
[330325575,1719258275498,-1062.08,0.00044931,120]
[330325576,1719258275534,-1023.54,0.00044931,120]
[330325577,1719258275572,-500.0,0.00044931,120]
[330325578,1719258275611,-534.28,0.00044931,120]
[330325579,1719258275817,-841.28,0.00044931,120]
[330325580,1719258275856,-1199.38,0.00044931,120]
[330325581,1719258275894,-500.0,0.00044931,120]
[330325582,1719258275931,-500.0,0.00044931,120]
[330325583,1719258275968,-500.0,0.00044931,120]
[330325584,1719258276005,-898.89,0.00044931,120]
[330325585,1719258276044,-909.82,0.00044931,120]
[330325586,1719258276085,-829.07,0.00044931,120]
[330325587,1719258276131,-1703.05,0.00044931,120]
[330325588,1719258276169,-1358.16,0.00044931,120]
[330325589,1719258276208,-500.0,0.00044931,120]
[330325590,1719258276245,-522.33,0.00044931,120]
[330325591,1719258276283,-1570.64,0.00044931,120]
[330325592,1719258276321,-40546.37,0.00044931,120]
[330325593,1719258276357,-758.34,0.00044931,120]
[330325594,1719258276398,-5071.79,0.00044931,120]
[330325595,1719258276437,-500.0,0.00044931,120]
[330325596,1719258276476,-500.0,0.00044931,120]
[330325597,1719258276516,-8129.85,0.00044931,120]
[330325598,1719258276555,-1395.41,0.00044931,120]
[330325599,1719258276597,-959.95,0.00044931,120]
[330325600,1719258276637,-1168.41,0.00044931,120]
[330325601,1719258276685,-500.0,0.00044931,120]
[330325602,1719258276726,-50000.0,0.00045,35]
[330325603,1719258276763,-1433.35409386,0.00045,90]
[330325604,1719258276803,-754.999985,0.00045,120]
[330325605,1719258276842,-2901.98030434,0.00045,120]
[330325606,1719258276880,-419.72318515,0.00045,45]
[330325607,1719258276918,-264.07620519,0.00045,30]
[330325608,1719258276954,-150.0,0.00045,85]
[330325609,1719258276992,-333.79549653,0.00045,30]
[330325610,1719258277030,-2951.01359567,0.00045,30]
[330325611,1719258277067,-2039.3408071,0.00045,30]
[330325612,1719258277105,-200.02394486,0.00045,120]
[330325613,1719258277143,-413.0,0.00045,120]
[330325614,1719258277180,-161.0,0.00045,120]
[330325615,1719258277220,-2000.0,0.00045,90]
[330325616,1719258277260,-2000.0,0.00045,90]
[330325617,1719258277299,-2000.0,0.00045,90]
[330325618,1719258277336,-2000.0,0.00045,90]
[330325619,1719258277379,-2000.0,0.00045,90]
[330325620,1719258277417,-2000.0,0.00045,90]
[330325621,1719258277456,-2000.0,0.00045,90]
[330325622,1719258277496,-2000.0,0.00045,90]
[330325623,1719258277535,-280.58622392,0.00045,120]
[330325624,1719258277573,-170.01517664,0.00045,120]
[330325625,1719258277612,-252.22418655,0.00045,120]
[330325626,1719258277654,-1000.0,0.00045081,30]
[330325627,1719258277696,-154.7599,0.0004514,30]
[330325628,1719258277737,-150.0,0.0004514,120]
[330325629,1719258277775,-500.0,0.00045205,120]
[330325630,1719258277815,-662.41,0.00045205,120]
[330325631,1719258277854,-500.0,0.00045205,120]
[330325632,1719258277894,-500.0,0.00045205,120]
[330325633,1719258277932,-500.0,0.00045205,120]
[330325634,1719258277972,-435.28773693,0.00045205,120]
[330325635,1719258278011,-500.0,0.00045205,120]
[330325636,1719258278056,-397.64006551,0.00045205,120]
[330325637,1719258278099,-507.28430417,0.00045205,120]
[330325638,1719258278139,-500.0,0.00045205,120]
[330325639,1719258278181,-599.32818897,0.00045205,120]
[330325640,1719258278222,-703.65,0.00045205,120]
[330325641,1719258278262,-574.53,0.00045205,120]
[330325642,1719258278307,-500.0,0.00045205,120]
[330325643,1719258278347,-500.0,0.00045205,120]
[330325644,1719258278386,-411.25578351,0.00045205,120]
[330325645,1719258278429,-500.0,0.00045205,120]
[330325646,1719258278472,-500.0,0.00045205,120]
[330325647,1719258278513,-500.0,0.00045205,120]
[330325648,1719258278556,-500.0,0.00045205,120]
[330325649,1719258278599,-523.37830933,0.00045205,120]
[330325650,1719258278640,-500.0,0.00045205,120]
[330325651,1719258278685,-500.0,0.00045205,120]
[330325652,1719258278726,-1500.0,0.00045205,120]
[330325653,1719258278765,-531.7,0.00045205,120]
[330325654,1719258278803,-557.88,0.00045205,120]
[330325655,1719258278850,-500.0,0.00045205,120]
[330325656,1719258278889,-544.41,0.00045205,120]
[330325657,1719258278928,-533.67,0.00045205,120]
[330325658,1719258278969,-783.5,0.00045205,120]
[330325659,1719258279010,-1253.81,0.00045205,120]
[330325660,1719258279051,-500.0,0.00045205,120]
[330325661,1719258279092,-500.0,0.00045205,120]
[330325662,1719258279134,-1270.42,0.00045205,120]
[330325663,1719258279174,-900.35,0.00045205,120]
[330325664,1719258279223,-526.4066447,0.00045205,120]
[330325665,1719258279264,-500.0,0.00045205,120]
[330325666,1719258279306,-500.0,0.00045205,120]
[330325667,1719258279347,-500.0,0.00045205,120]
[330325668,1719258279390,-500.0,0.00045205,120]
[330325669,1719258279432,-500.0,0.00045205,120]
[330325670,1719258279478,-1708.9,0.00045205,120]
[330325671,1719258279519,-500.0,0.00045205,120]
[330325672,1719258279560,-500.0,0.00045205,120]
[330325673,1719258279601,-500.0,0.00045205,120]
[330325674,1719258279641,-500.0,0.00045205,120]
[330325675,1719258279685,-500.0,0.00045205,120]
[330325676,1719258279726,-500.0,0.00045205,120]
[330325677,1719258279768,-500.0,0.00045205,120]
[330325678,1719258279810,-500.0,0.00045205,120]
[330325679,1719258279852,-500.0,0.00045205,120]
[330325680,1719258279895,-518.65,0.00045205,120]
[330325681,1719258279933,-500.0,0.00045205,120]
[330325682,1719258280138,-500.0,0.00045205,120]
[330325683,1719258280180,-1042.74,0.00045205,120]
[330325684,1719258280221,-500.0,0.00045205,120]
[330325685,1719258280262,-500.0,0.00045205,120]
[330325686,1719258280302,-500.0,0.00045205,120]
[330325687,1719258280344,-500.0,0.00045205,120]
[330325688,1719258280389,-493.17879389,0.00045205,120]
[330325689,1719258280428,-1093.23,0.00045205,120]
[330325690,1719258280469,-500.0,0.00045205,120]
[330325691,1719258280509,-605.73,0.00045205,120]
[330325692,1719258280549,-500.0,0.00045205,120]
[330325693,1719258280591,-500.0,0.00045205,120]
[330325694,1719258280634,-500.0,0.00045205,120]
[330325695,1719258280678,-500.0,0.00045205,120]
[330325696,1719258280720,-150.0,0.00045205,120]
[330325697,1719258280764,-500.0,0.00045205,120]
[330325698,1719258280804,-785.26,0.00045205,120]
[330325699,1719258280843,-500.0,0.00045205,120]
[330325700,1719258280886,-500.0,0.00045205,120]
[330325701,1719258280927,-500.0,0.00045205,120]
[330325702,1719258280967,-175.45655076,0.00045205,120]
[330325703,1719258281009,-838.61,0.00045205,120]
[330325704,1719258281060,-500.0,0.00045205,120]
[330325705,1719258281105,-500.0,0.00045205,120]
[330325706,1719258281150,-500.0,0.00045205,120]
[330325707,1719258281193,-500.0,0.00045205,120]
[330325708,1719258281234,-500.0,0.00045205,120]
[330325709,1719258281279,-500.0,0.00045205,120]
[330325710,1719258281323,-500.0,0.00045205,120]
[330325711,1719258281367,-500.0,0.00045205,120]
[330325712,1719258281409,-500.0,0.00045205,120]
[330325713,1719258281450,-525.51439857,0.00045205,120]
[330325714,1719258281492,-500.0,0.00045205,120]
[330325715,1719258281533,-500.0,0.00045205,120]
[330325716,1719258281576,-500.0,0.00045205,120]
[330325717,1719258281616,-500.0,0.00045205,120]
[330325718,1719258281657,-500.0,0.00045205,120]
[330325719,1719258281700,-500.0,0.00045205,120]
[330325720,1719258281748,-500.0,0.00045205,120]
[330325721,1719258281798,-594.12,0.00045205,120]
[330325722,1719258281852,-500.0,0.00045205,120]
[330325723,1719258281892,-500.0,0.00045205,120]
[330325724,1719258281934,-655.63,0.00045205,120]
[330325725,1719258281976,-500.0,0.00045205,120]
[330325726,1719258282015,-849.72,0.00045205,120]
[330325727,1719258282056,-500.0,0.00045205,120]
[330325728,1719258282098,-500.0,0.00045205,120]
[330325729,1719258282138,-326.83781393,0.00045205,120]
[330325730,1719258282180,-500.0,0.00045205,120]
[330325731,1719258282227,-500.0,0.00045205,120]
[330325732,1719258282268,-529.21,0.00045205,120]
[330325733,1719258282308,-500.0,0.00045205,120]
[330325734,1719258282352,-567.01,0.00045205,120]
[330325735,1719258282392,-500.0,0.00045205,120]
[330325736,1719258282439,-500.0,0.00045205,120]
[330325737,1719258282482,-500.0,0.00045205,120]
[330325738,1719258282523,-500.0,0.00045205,120]
[330325739,1719258282565,-500.0,0.00045205,120]
[330325740,1719258282607,-520.6789218,0.00045205,120]
[330325741,1719258282651,-624.84478084,0.00045205,120]
[330325742,1719258282692,-500.0,0.00045205,120]
[330325743,1719258282734,-500.0,0.00045205,120]
[330325744,1719258282774,-500.0,0.00045205,120]
[330325745,1719258282818,-500.0,0.00045205,120]
[330325746,1719258282862,-500.0,0.00045205,120]
[330325747,1719258282902,-500.0,0.00045205,120]
[330325748,1719258282941,-500.0,0.00045205,120]
[330325749,1719258282983,-500.0,0.00045205,120]
[330325750,1719258283024,-500.0,0.00045205,120]
[330325751,1719258283066,-500.0,0.00045205,120]
[330325752,1719258283107,-500.0,0.00045205,120]
[330325753,1719258283148,-500.0,0.00045205,120]
[330325754,1719258283192,-470.56561567,0.00045205,120]
[330325755,1719258283234,-2788.04,0.00045205,120]
[330325756,1719258283275,-500.0,0.00045205,120]
[330325757,1719258283318,-500.0,0.00045205,120]
[330325758,1719258283360,-500.0,0.00045205,120]
[330325759,1719258283403,-500.0,0.00045205,120]
[330325760,1719258283445,-500.0,0.00045205,120]
[330325761,1719258283486,-1166.09,0.00045205,120]
[330325762,1719258283526,-500.0,0.00045205,120]
[330325763,1719258283565,-500.0,0.00045205,120]
[330325764,1719258283606,-500.0,0.00045205,120]
[330325765,1719258283649,-1262.68,0.00045205,120]
[330325766,1719258283689,-500.0,0.00045205,120]
[330325767,1719258283735,-500.0,0.00045205,120]
[330325768,1719258283776,-500.0,0.00045205,120]
[330325769,1719258283818,-500.0,0.00045205,120]
[330325770,1719258283858,-790.48,0.00045205,120]
[330325771,1719258283899,-500.0,0.00045205,120]
[330325772,1719258283940,-440.63695169,0.00045205,120]
[330325773,1719258283979,-500.0,0.00045205,120]
[330325774,1719258284021,-500.0,0.00045205,120]
[330325775,1719258284066,-500.0,0.00045205,120]
[330325776,1719258284107,-687.92,0.00045205,120]
[330325777,1719258284148,-500.0,0.00045205,120]
[330325778,1719258284190,-500.0,0.00045205,120]
[330325779,1719258284240,-552.20538713,0.00045205,120]
[330325780,1719258284286,-766.33,0.00045205,120]
[330325781,1719258284328,-500.0,0.00045205,120]
[330325782,1719258284366,-500.0,0.00045205,120]
[330325783,1719258284407,-765.44,0.00045205,120]
[330325784,1719258284450,-500.0,0.00045205,120]
[330325785,1719258284491,-500.0,0.00045205,120]
[330325786,1719258284836,-1969.8,0.00045205,120]
[330325787,1719258284877,-500.0,0.00045205,120]
[330325788,1719258284918,-500.0,0.00045205,120]
[330325789,1719258284960,-500.0,0.00045205,120]
[330325790,1719258285006,-1694.12,0.00045205,120]
[330325791,1719258285049,-824.95,0.00045205,120]
[330325792,1719258285092,-553.17,0.00045205,120]
[330325793,1719258285134,-370.79525135,0.00045205,120]
[330325794,1719258285175,-500.0,0.00045205,120]
[330325795,1719258285215,-1172.25,0.00045205,120]
[330325796,1719258285255,-571.93,0.00045205,120]
[330325797,1719258285294,-423.82658329,0.00045205,120]
[330325798,1719258285333,-675.94,0.00045205,120]
[330325799,1719258285378,-819.57,0.00045205,120]
[330325800,1719258285418,-1195.67,0.00045205,120]
[330325801,1719258285459,-500.0,0.00045205,120]
[330325802,1719258285498,-500.0,0.00045205,120]
[330325803,1719258285538,-804.5,0.00045205,120]
[330325804,1719258285576,-667.67,0.00045205,120]
[330325805,1719258285616,-1165.11,0.00045205,120]
[330325806,1719258285655,-500.0,0.00045205,120]
[330325807,1719258285694,-500.0,0.00045205,120]
[330325808,1719258285735,-500.0,0.00045205,120]
[330325809,1719258285776,-1099.82,0.00045205,120]
[330325810,1719258285815,-816.17,0.00045205,120]
[330325811,1719258285859,-500.0,0.00045205,120]
[330325812,1719258285900,-500.0,0.00045205,120]
[330325813,1719258285940,-500.0,0.00045205,120]
[330325814,1719258285976,-500.0,0.00045205,120]
[330325815,1719258286018,-500.0,0.00045205,120]
[330325816,1719258286059,-627.61,0.00045205,120]
[330325817,1719258286101,-500.0,0.00045205,120]
[330325818,1719258286140,-500.0,0.00045205,120]
[330325819,1719258286180,-1399.72,0.00045205,120]
[330325820,1719258286219,-1021.58,0.00045205,120]
[330325821,1719258286259,-1516.79,0.00045205,120]
[330325822,1719258286299,-500.0,0.00045205,120]
[330325823,1719258286339,-500.0,0.00045205,120]
[330325824,1719258286380,-1038.38,0.00045205,120]
[330325825,1719258286423,-1562.7,0.00045205,120]
[330325826,1719258286462,-500.0,0.00045205,120]
[330325827,1719258286502,-500.0,0.00045205,120]
[330325828,1719258286542,-500.0,0.00045205,120]
[330325829,1719258286583,-2386.52,0.00045205,120]
[330325830,1719258286626,-500.0,0.00045205,120]
[330325831,1719258286666,-651.41,0.00045205,120]
[330325832,1719258286706,-531.38,0.00045205,120]
[330325833,1719258286750,-1212.63,0.00045205,120]
[330325834,1719258286792,-500.0,0.00045205,120]
[330325835,1719258286835,-500.0,0.00045205,120]
[330325836,1719258286878,-500.0,0.00045205,120]
[330325837,1719258286919,-500.0,0.00045205,120]
[330325838,1719258286961,-508.43,0.00045205,120]
[330325839,1719258287001,-268.71,0.00045205,120]
[330325840,1719258287052,-932.91,0.00045205,120]
[330325841,1719258287092,-500.0,0.00045205,120]
[330325842,1719258287135,-500.0,0.00045205,120]
[330325843,1719258287175,-500.0,0.00045205,120]
[330325844,1719258287220,-500.0,0.00045205,120]
[330325845,1719258287259,-500.0,0.00045205,120]
[330325846,1719258287299,-500.0,0.00045205,120]
[330325847,1719258287342,-506.19,0.00045205,120]
[330325848,1719258287384,-844.64,0.00045205,120]
[330325849,1719258287427,-660.39,0.00045205,120]
[330325850,1719258287469,-500.83,0.00045205,120]
[330325851,1719258287510,-682.01,0.00045205,120]
[330325852,1719258287548,-2912.3,0.00045205,120]
[330325853,1719258287586,-2243.25,0.00045205,120]
[330325854,1719258287625,-763.57,0.00045205,120]
[330325855,1719258287667,-500.0,0.00045205,120]
[330325856,1719258287707,-500.0,0.00045205,120]
[330325857,1719258287748,-1080.37,0.00045205,120]
[330325858,1719258287787,-500.0,0.00045205,120]
[330325859,1719258287829,-775.89,0.00045205,120]
[330325860,1719258287868,-579.59,0.00045205,120]
[330325861,1719258287907,-712.8,0.00045205,120]
[330325862,1719258287943,-500.0,0.00045205,120]
[330325863,1719258287987,-353.94288243,0.00045205,120]
[330325864,1719258288037,-500.0,0.00045205,120]
[330325865,1719258288077,-2552.8,0.00045205,120]
[330325866,1719258288120,-500.0,0.00045205,120]
[330325867,1719258288162,-500.0,0.00045205,120]
[330325868,1719258288204,-709.83,0.00045205,120]
[330325869,1719258288245,-500.0,0.00045205,120]
[330325870,1719258288287,-892.32,0.00045205,120]
[330325871,1719258288324,-816.66,0.00045205,120]
[330325872,1719258288366,-2290.5,0.00045205,120]
[330325873,1719258288407,-500.0,0.00045205,120]
[330325874,1719258288447,-639.14,0.00045205,120]
[330325875,1719258288488,-500.0,0.00045205,120]
[330325876,1719258288529,-767.44,0.00045205,120]
[330325877,1719258288568,-500.0,0.00045205,120]
[330325878,1719258288608,-500.0,0.00045205,120]
[330325879,1719258288652,-847.35,0.00045205,120]
[330325880,1719258288693,-500.0,0.00045205,120]
[330325881,1719258288731,-420.34213723,0.00045205,120]
[330325882,1719258288770,-1992.92,0.00045205,120]
[330325883,1719258288810,-500.0,0.00045205,120]
[330325884,1719258288849,-500.0,0.00045205,120]
[330325885,1719258288889,-500.0,0.00045205,120]
[330325886,1719258288931,-500.0,0.00045205,120]
[330325887,1719258288973,-302.85,0.00045205,120]
[330325888,1719258289013,-617.04042658,0.00045205,120]
[330325889,1719258289053,-500.0,0.00045205,120]
[330325890,1719258289270,-611.14,0.00045205,120]
[330325891,1719258289313,-500.0,0.00045205,120]
[330325892,1719258289354,-510.53,0.00045205,120]
[330325893,1719258289397,-995.0,0.00045205,120]
[330325894,1719258289438,-1398.2,0.00045205,120]
[330325895,1719258289477,-623.96,0.00045205,120]
[330325896,1719258289513,-515.43,0.00045205,120]
[330325897,1719258289552,-811.57,0.00045205,120]
[330325898,1719258289593,-500.0,0.00045205,120]
[330325899,1719258289645,-500.0,0.00045205,120]
[330325900,1719258289684,-500.0,0.00045205,120]
[330325901,1719258289727,-478.36636038,0.00045205,120]
[330325902,1719258289768,-500.0,0.00045205,120]
[330325903,1719258289809,-189.69,0.00045205,120]
[330325904,1719258289848,-669.18,0.00045205,120]
[330325905,1719258289888,-517.26895854,0.00045205,120]
[330325906,1719258289926,-500.0,0.00045205,120]
[330325907,1719258289966,-500.0,0.00045205,120]
[330325908,1719258290006,-500.0,0.00045205,120]
[330325909,1719258290046,-500.0,0.00045205,120]
[330325910,1719258290086,-500.0,0.00045205,120]
[330325911,1719258290126,-500.0,0.00045205,120]
[330325912,1719258290166,-500.0,0.00045205,120]
[330325913,1719258290205,-500.0,0.00045205,120]
[330325914,1719258290244,-500.0,0.00045205,120]
[330325915,1719258290283,-500.0,0.00045205,120]
[330325916,1719258290320,-500.0,0.00045205,120]
[330325917,1719258290361,-500.0,0.00045205,120]
[330325918,1719258290402,-500.0,0.00045205,120]
[330325919,1719258290443,-639.21,0.00045205,120]
[330325920,1719258290483,-511.29,0.00045205,120]
[330325921,1719258290523,-1932.92,0.00045205,120]
[330325922,1719258290564,-542.44,0.00045205,120]
[330325923,1719258290608,-603.28,0.00045205,120]
[330325924,1719258290655,-500.0,0.00045205,120]
[330325925,1719258290695,-500.0,0.00045205,120]
[330325926,1719258290734,-500.0,0.00045205,120]
[330325927,1719258290774,-500.0,0.00045205,120]
[330325928,1719258290814,-745.89,0.00045205,120]
[330325929,1719258290860,-500.0,0.00045205,120]
[330325930,1719258290904,-500.0,0.00045205,120]
[330325931,1719258290944,-990.35,0.00045205,120]
[330325932,1719258290983,-500.0,0.00045205,120]
[330325933,1719258291023,-500.0,0.00045205,120]
[330325934,1719258291062,-500.0,0.00045205,120]
[330325935,1719258291103,-219.8,0.00045205,120]
[330325936,1719258291145,-500.0,0.00045205,120]
[330325937,1719258291187,-500.0,0.00045205,120]
[330325938,1719258291229,-722.46,0.00045205,120]
[330325939,1719258291270,-1290.82,0.00045205,120]
[330325940,1719258291310,-1160.71,0.00045205,120]
[330325941,1719258291350,-285.68,0.00045205,120]
[330325942,1719258291393,-1238.72,0.00045205,120]
[330325943,1719258291433,-500.0,0.00045205,120]
[330325944,1719258291474,-500.0,0.00045205,120]
[330325945,1719258291513,-501.29,0.00045205,120]
[330325946,1719258291553,-500.0,0.00045205,120]
[330325947,1719258291593,-500.0,0.00045205,120]
[330325948,1719258291633,-660.18,0.00045205,120]
[330325949,1719258291679,-508.21589752,0.00045205,120]
[330325950,1719258291722,-500.0,0.00045205,120]
[330325951,1719258291762,-1152.05,0.00045205,120]
[330325952,1719258291801,-537.71,0.00045205,120]
[330325953,1719258291841,-909.58,0.00045205,120]
[330325954,1719258291883,-500.0,0.00045205,120]
[330325955,1719258291922,-1089.47,0.00045205,120]
[330325956,1719258291964,-562.13,0.00045205,120]
[330325957,1719258292006,-500.0,0.00045205,120]
[330325958,1719258292049,-500.0,0.00045205,120]
[330325959,1719258292095,-343.98,0.00045205,120]
[330325960,1719258292138,-594.01,0.00045205,120]
[330325961,1719258292183,-596.12,0.00045205,30]
[330325962,1719258292221,-532.81,0.00045205,120]
[330325963,1719258292262,-524.87589422,0.00045205,120]
[330325964,1719258292301,-500.0,0.00045205,120]
[330325965,1719258292338,-2835.37,0.00045205,120]
[330325966,1719258292377,-2670.65,0.00045205,120]
[330325967,1719258292418,-500.0,0.00045205,120]
[330325968,1719258292457,-500.0,0.00045205,120]
[330325969,1719258292499,-500.0,0.00045205,120]
[330325970,1719258292539,-500.0,0.00045205,120]
[330325971,1719258292580,-1496.26,0.00045205,120]
[330325972,1719258292621,-833.92,0.00045205,120]
[330325973,1719258292659,-500.0,0.00045205,120]
[330325974,1719258292698,-1709.42,0.00045205,120]
[330325975,1719258292738,-1353.45,0.00045205,120]
[330325976,1719258292777,-599.03,0.00045205,120]
[330325977,1719258292817,-1063.0,0.00045205,120]
[330325978,1719258292859,-500.0,0.00045205,90]
[330325979,1719258292898,-317.97153736,0.00045205,120]
[330325980,1719258292941,-1406.68,0.00045205,120]
[330325981,1719258292981,-500.0,0.00045205,120]
[330325982,1719258293021,-3948.04,0.00045205,120]
[330325983,1719258293058,-800.27,0.00045205,120]
[330325984,1719258293097,-500.0,0.00045205,120]
[330325985,1719258293138,-500.0,0.00045205,120]
[330325986,1719258293179,-1227.33,0.00045205,120]
[330325987,1719258293220,-8263.86,0.00045205,120]
[330325988,1719258293262,-1743.76,0.00045205,120]
[330325989,1719258293302,-1127.16,0.00045205,120]
[330325990,1719258293341,-500.0,0.00045205,120]
[330325991,1719258293384,-500.0,0.00045205,120]
[330325992,1719258293424,-2016.78,0.00045205,120]
[330325993,1719258293632,-1126.39,0.00045205,120]
[330325994,1719258293677,-1708.98,0.00045205,120]
[330325995,1719258293719,-516.49867571,0.00045205,120]
[330325996,1719258293763,-1099.7,0.00045205,120]
[330325997,1719258293802,-1426.31,0.00045205,120]
[330325998,1719258293843,-500.0,0.00045205,120]
[330325999,1719258293885,-1323.01,0.00045205,120]
[330326000,1719258293927,-1770.99,0.00045205,120]
[330326001,1719258293969,-500.0,0.00045205,120]
[330326002,1719258294011,-886.44,0.00045205,120]
[330326003,1719258294057,-500.0,0.00045205,120]
[330326004,1719258294111,-500.0,0.00045205,120]
[330326005,1719258294158,-2248.85,0.00045205,120]
[330326006,1719258294199,-500.0,0.00045205,120]
[330326007,1719258294239,-1193.42,0.00045205,120]
[330326008,1719258294281,-500.0,0.00045205,120]
[330326009,1719258294323,-1627.12,0.00045205,120]
[330326010,1719258294366,-2029.01,0.00045205,120]
[330326011,1719258294410,-994.14,0.00045205,120]
[330326012,1719258294454,-500.0,0.00045205,120]
[330326013,1719258294495,-517.53953259,0.00045205,120]
[330326014,1719258294537,-1443.36,0.00045205,120]
[330326015,1719258294580,-500.0,0.00045205,120]
[330326016,1719258294623,-609.82,0.00045205,120]
[330326017,1719258294666,-500.0,0.00045205,120]
[330326018,1719258294710,-500.0,0.00045205,90]
[330326019,1719258294753,-500.0,0.00045205,120]
[330326020,1719258294800,-861.71,0.00045205,120]
[330326021,1719258294841,-1411.55,0.00045205,120]
[330326022,1719258294882,-500.0,0.00045205,120]
[330326023,1719258294923,-678.0,0.00045205,120]
[330326024,1719258294964,-959.44,0.00045205,120]
[330326025,1719258295007,-14849.4,0.00045205,120]
[330326026,1719258295049,-500.0,0.00045205,120]
[330326027,1719258295091,-500.0,0.00045205,120]
[330326028,1719258295132,-1025.11,0.00045205,120]
[330326029,1719258295175,-3657.05,0.00045205,120]
[330326030,1719258295217,-643.67,0.00045205,120]
[330326031,1719258295261,-500.0,0.00045205,120]
[330326032,1719258295301,-500.0,0.00045205,120]
[330326033,1719258295343,-921.25,0.00045205,120]
[330326034,1719258295385,-500.0,0.00045205,120]
[330326035,1719258295422,-500.0,0.00045205,120]
[330326036,1719258295464,-500.0,0.00045205,120]
[330326037,1719258295507,-167.28,0.00045205,120]
[330326038,1719258295549,-1522.85,0.00045205,120]
[330326039,1719258295590,-575.37,0.00045205,120]
[330326040,1719258295632,-566.76,0.00045205,120]
[330326041,1719258295679,-500.0,0.00045205,120]
[330326042,1719258295722,-500.0,0.00045205,120]